lending/lending_fUSD_20260312
["ID","MTS","AMOUNT","RATE_DAILY","PERIOD"]
[408275197,1773342643175,-267.39698763,0.00017753,2]
[408275199,1773342643184,-150.0,0.00017753,2]
[408275201,1773342643194,-500.0,0.00017753,2]
[408275203,1773342643204,-500.0,0.00017753,2]
[408275205,1773342643213,-150.0,0.00017753,2]
[408275207,1773342643222,-2000.0,0.00017764,2]
[408275209,1773342643232,-150.0,0.00017808,2]
[408275211,1773342643241,-500.0,0.00017808,2]
[408275213,1773342643253,-500.0,0.00017808,2]
[408275215,1773342643263,-500.0,0.00017808,2]
[408275218,1773342643273,-500.0,0.00017808,2]
[408275220,1773342643283,-500.0,0.00017808,2]
[408275222,1773342643292,-454.0,0.00017808,2]
[408275224,1773342643301,-150.0,0.00017808,2]
[408275226,1773342643311,-150.0,0.00017808,2]
[408275228,1773342643321,-500.0,0.00017808,2]
[408275230,1773342643331,-500.0,0.00017808,2]
[408275232,1773342643340,-1007.41782398,0.0001786,2]
[408275234,1773342643350,-150.0,0.00017863,2]
[408275236,1773342643360,-500.0,0.00017863,2]
[408275238,1773342643369,-500.0,0.00017863,2]
[408275240,1773342643379,-500.0,0.00017863,2]
[408275242,1773342643388,-500.0,0.00017863,2]
[408275244,1773342643397,-500.0,0.00017863,2]
[408275246,1773342643406,-454.0,0.00017863,2]
[408275248,1773342643416,-150.0,0.00017863,2]
[408275250,1773342643425,-153.29620988,0.00017863,2]
[408275252,1773342643435,-500.0,0.00017863,2]
[408275254,1773342643444,-500.0,0.00017863,2]
[408275256,1773342643453,-1229.1914403,0.0001789,2]
[408275258,1773342643463,-1077.11010336,0.0001789,2]
[408275260,1773342643473,-250.58262965,0.00017917,2]
[408275262,1773342643482,-500.0,0.00017917,2]
[408275264,1773342643491,-500.0,0.00017917,2]
[408275266,1773342643500,-500.0,0.00017917,2]
[408275268,1773342643510,-500.0,0.00017917,2]
[408275270,1773342643519,-224.0,0.00017917,2]
[408275272,1773342643528,-454.0,0.00017917,2]
[408275274,1773342643538,-452.39746833,0.00017917,2]
[408275276,1773342643547,-500.0,0.00017917,2]
[408275278,1773342643557,-500.0,0.00017937,2]
[408275280,1773342643566,-500.0,0.00017937,2]
[408275282,1773342643575,-500.0,0.00017937,2]
[408275284,1773342643585,-500.0,0.00017972,2]
[408275286,1773342643594,-336.58574152,0.00017972,2]
[408275288,1773342643603,-267.0,0.00017972,2]
[408275290,1773342643613,-454.0,0.00017972,2]
[408275292,1773342643622,-500.0,0.00017972,2]
[408275293,1773342643632,-500.0,0.00018027,2]
[408275295,1773342643641,-454.0,0.00018027,2]
[408275297,1773342643651,-500.0,0.00018027,2]
[408275300,1773342643661,-500.0,0.00018082,2]
[408275302,1773342643673,-454.0,0.00018082,2]
[408275304,1773342643682,-500.0,0.00018082,2]
[408275306,1773342643691,-500.0,0.00018137,2]
[408275308,1773342643702,-454.0,0.00018137,2]
[408275310,1773342643711,-500.0,0.00018137,2]
[408275312,1773342643720,-450.0,0.00018191,2]
[408275314,1773342643729,-454.0,0.00018191,2]
[408275316,1773342643738,-450.0,0.00018191,2]
[408275318,1773342643747,-454.0,0.00018246,2]
[408275320,1773342643756,-454.0,0.00018301,2]
[408275322,1773342643766,-454.0,0.00018356,2]
[408275324,1773342643775,-454.0,0.00018411,2]
[408275326,1773342643785,-454.0,0.00018465,2]
[408275328,1773342643794,-751.46,0.00018473,2]
[408275330,1773342643803,-454.0,0.0001852,2]
[408275332,1773342643812,-454.0,0.00018575,2]
[408275334,1773342643822,-454.0,0.0001863,2]
[408275336,1773342643831,-454.0,0.00018685,2]
[408275338,1773342643840,-454.0,0.00018739,2]
[408275340,1773342643850,-454.0,0.00018794,2]
[408275342,1773342643859,-454.0,0.00018849,2]
[408275344,1773342643870,-454.0,0.00018904,2]
[408275346,1773342643883,-454.0,0.00018958,2]
[408275348,1773342643893,-501.01772395,0.0001896,2]
[408275371,1773342644104,-466.76094671,0.00019013,2]
[408275373,1773342644115,-250.0,0.00019096,2]
[408275375,1773342644124,-150.0,0.0001913,2]
[408275377,1773342644135,-202.690585,0.00019132,2]
[408275379,1773342644155,-207.317476,0.00019178,2]
[408275381,1773342644173,-207.317476,0.00019178,2]
[408275383,1773342644183,-207.317476,0.00019178,2]
[408275385,1773342644192,-207.317476,0.00019178,2]
[408275387,1773342644202,-151.0,0.00019178,2]
[408275389,1773342644212,-3292.0,0.00019236,2]
[408275391,1773342644222,-500.0,0.00019322,2]
[408275393,1773342644232,-500.0,0.00019322,2]
[408275395,1773342644241,-507.0,0.0001952,4]
[408275397,1773342644251,-500.0,0.00019718,2]
[408275399,1773342644260,-500.0,0.00019718,2]
[408275401,1773342644270,-5400.0,0.000198,7]
[408275403,1773342644278,-500.0,0.00019866,2]
[408275405,1773342644287,-1500.0,0.00019866,2]
[408275407,1773342644297,-1500.0,0.00019866,2]
[408275409,1773342644306,-1500.0,0.00019866,2]
[408275411,1773342644315,-250.0,0.00019866,2]
[408275413,1773342644324,-1500.0,0.00019866,2]
[408275415,1773342644333,-250.0,0.00019866,2]
[408275417,1773342644343,-500.0,0.00019866,2]
[408275419,1773342644353,-1500.0,0.00019866,2]
[408275421,1773342644362,-250.0,0.00019866,2]
[408275422,1773342644371,-500.0,0.00019866,2]
[408275424,1773342644380,-1500.0,0.00019866,2]
[408275426,1773342644390,-578.20924308,0.00019866,2]
[408275428,1773342644399,-250.0,0.00019866,2]
[408275430,1773342644408,-500.0,0.00019866,2]
[408275432,1773342644418,-1592.44280863,0.00019866,2]
[408275434,1773342644428,-500.0,0.00019866,2]
[408275436,1773342644437,-288.77710282,0.00019866,2]
[408275438,1773342644447,-500.0,0.00019866,2]
[408275440,1773342644456,-500.0,0.00019866,2]
[408275442,1773342644466,-500.0,0.00019866,2]
[408275444,1773342644475,-500.0,0.00019866,2]
[408275446,1773342644484,-500.0,0.00019866,2]
[408275448,1773342644493,-500.0,0.00019866,2]
[408275450,1773342644502,-151.0,0.00019866,2]
[408275452,1773342644513,-500.0,0.00019866,2]
[408275454,1773342644522,-500.0,0.00019866,2]
[408275456,1773342644532,-500.0,0.00019866,2]
[408275458,1773342644541,-500.0,0.00019866,2]
[408275460,1773342644551,-500.0,0.00019866,2]
[408275462,1773342644560,-500.0,0.00019866,2]
[408275464,1773342644569,-500.0,0.00019866,2]
[408275466,1773342644578,-500.0,0.00019866,2]
[408275468,1773342644587,-500.0,0.00019866,2]
[408275470,1773342644596,-500.0,0.00019866,2]
[408275472,1773342644606,-500.0,0.00019866,2]
[408275474,1773342644615,-500.0,0.00019866,2]
[408275476,1773342644624,-5400.0,0.000199,7]
[408275478,1773342644633,-500.0,0.00019921,2]
[408275480,1773342644643,-500.0,0.00019973,2]
[408275482,1773342644652,-500.0,0.00019973,2]
[408275484,1773342644662,-500.0,0.00019973,2]
[408275486,1773342644671,-500.0,0.00019973,2]
[408275488,1773342644680,-500.0,0.00019976,2]
[408275490,1773342644690,-14478.40492129,0.0001998,2]
[408275492,1773342644700,-300.0,0.00019999,2]
[408275494,1773342644709,-500.0,0.00019999,2]
[408275496,1773342644719,-500.0,0.00019999,2]
[408275498,1773342644728,-304.09461894,0.00019999,2]
[408275500,1773342644742,-558.0,0.0002,2]
[408275502,1773342644751,-628.64,0.0002,7]
[408275504,1773342644760,-2498462.83762212,0.0002,2]
[408275506,1773342644770,-45628.40575783,0.0002,2]
[408275508,1773342644779,-151.0,0.0002,2]
[408275511,1773342644792,-755558.11645746,0.0002,2]
[408275512,1773342644802,-151.0,0.0002,2]
[408275515,1773342644812,-151.0,0.0002,2]
[408275517,1773342644821,-151.0,0.0002,2]
[408275519,1773342644831,-151.0,0.0002,2]
[408275521,1773342644840,-151.0,0.0002,2]
[408275523,1773342644849,-151.0,0.0002,2]
[408275525,1773342644859,-207.317476,0.0002,2]
[408275527,1773342644868,-207.317476,0.0002,2]
[408275529,1773342644880,-207.317476,0.0002,2]
[408275531,1773342644890,-207.317476,0.0002,2]
[408275533,1773342644899,-207.317476,0.0002,2]
[408275535,1773342644908,-207.317476,0.0002,2]
[408275537,1773342644919,-207.317476,0.0002,2]
[408275539,1773342644929,-207.317476,0.0002,2]
[408275541,1773342644938,-151.0,0.0002,2]
[408275543,1773342644948,-151.0,0.0002,2]
[408275545,1773342644959,-219.47681528,0.0002,7]
[408275547,1773342644968,-500.0,0.00020031,2]
[408275549,1773342644977,-500.0,0.00020086,2]
[408275551,1773342644986,-500.0,0.00020141,2]
[408275553,1773342644995,-500.0,0.00020196,2]
[408275555,1773342645004,-500.0,0.00020251,2]
[408275557,1773342645013,-500.0,0.00020306,2]
[408275559,1773342645024,-751.46,0.0002032,2]
[408275561,1773342645032,-500.0,0.00020361,2]
[408275563,1773342645042,-500.0,0.00020416,2]
[408275565,1773342645051,-2183.0,0.00020491,2]
[408275567,1773342645061,-500.0,0.00020521,2]
[408275569,1773342645071,-3050.0,0.00021159,2]
[408275571,1773342645080,-500.0,0.00021233,2]
[408275573,1773342645089,-422.0,0.00021656,2]
[408275575,1773342645098,-422.0,0.00021677,2]
[408275577,1773342645109,-422.0,0.00021681,2]
[408275579,1773342645118,-422.0,0.00021743,2]
[408275581,1773342645127,-507.0,0.0002204,6]
[408275583,1773342645137,-422.0,0.00022082,2]
[408275585,1773342645146,-751.46,0.00022167,2]
[408275587,1773342645158,-422.0,0.00022196,2]
[408275588,1773342645168,-2727.0,0.00022359,2]
[408275589,1773342645177,-422.0,0.00022372,2]
[408275590,1773342645186,-422.0,0.00022462,2]
[408275591,1773342645196,-1138.1089588,0.00022529,18]
[408275592,1773342645212,-422.0,0.00022535,2]
[408275593,1773342645232,-422.0,0.00022602,2]
[408275594,1773342645242,-599.60298507,0.00022605,2]
[408275595,1773342645252,-422.0,0.00022709,2]
[408275596,1773342645261,-357.21,0.00022779,14]
[408275597,1773342645270,-246.58,0.00022788,2]
[408275598,1773342645279,-422.0,0.00022855,2]
[408275599,1773342645289,-422.0,0.00022892,2]
[408275600,1773342645299,-422.0,0.00023059,2]
[408275601,1773342645308,-422.0,0.0002306,2]
[408275602,1773342645317,-201.88,0.00023097,2]
[408275603,1773342645326,-422.0,0.0002317,2]
[408275604,1773342645335,-422.0,0.00023181,2]
[408275605,1773342645345,-422.0,0.00023262,2]
[408275607,1773342645354,-422.0,0.00023333,2]
[408275608,1773342645363,-422.0,0.00023388,2]
[408275610,1773342645372,-422.0,0.00023396,2]
[408275612,1773342645381,-422.0,0.00023435,2]
[408275614,1773342645391,-422.0,0.00023472,2]
[408275616,1773342645400,-422.0,0.00023484,2]
[408275618,1773342645409,-422.0,0.00023622,2]
[408275620,1773342645419,-479.93,0.00023859,2]
[408275622,1773342645429,-298.89,0.00023972,2]
[408275624,1773342645438,-479.93,0.00024257,2]
[408275626,1773342645448,-150.0,0.0002438,2]
[408275628,1773342645458,-150.0,0.0002438,2]
[408275630,1773342645467,-150.0,0.0002438,2]
[408275632,1773342645476,-150.0,0.00024435,2]
[408275634,1773342645486,-150.0,0.00024435,2]
[408275636,1773342645495,-150.0,0.00024435,2]
[408275638,1773342645505,-252.0,0.0002449,2]
[408275640,1773342645515,-507.0,0.0002456,8]
[408275642,1773342645525,-479.93,0.00024654,2]
[408275645,1773342645540,-305.57091289,0.00024873,2]
[408275647,1773342645549,-500.0,0.00024873,2]
[408275649,1773342645559,-300.0,0.00024899,10]
[408275651,1773342645568,-151.0,0.000249,2]
[408275653,1773342645577,-151.0,0.000249,2]
[408275655,1773342645587,-151.0,0.000249,2]
[408275657,1773342645596,-217.225635,0.000249,2]
[408275659,1773342645608,-151.0,0.000249,2]
[408275661,1773342645617,-151.0,0.000249,2]
[408275663,1773342645626,-151.0,0.000249,2]
[408275665,1773342645635,-428722.085937,0.000249,3]
[408275666,1773342645645,-207.317476,0.000249,2]
[408275668,1773342645654,-207.317476,0.000249,2]
[408275670,1773342645664,-207.317476,0.000249,2]
[408275672,1773342645673,-207.317476,0.000249,2]
[408275674,1773342645683,-247.48115388,0.0002493,2]
[408275676,1773342645693,-312668.5006257,0.00024985,2]
[408275678,1773342645702,-3678.1248252,0.00024985,2]
[408275680,1773342645711,-250.0,0.00025,7]
[408275682,1773342645721,-479.9478825,0.00025052,2]
[408275684,1773342645730,-621.78829552,0.00025344,2]
[408275686,1773342645739,-500.0,0.0002562,2]
[408275688,1773342645748,-500.0,0.0002562,2]
[408275690,1773342645757,-161.35927651,0.0002562,2]
[408275692,1773342645766,-242.26,0.00025686,14]
[408275694,1773342645775,-163.50554828,0.0002674,2]
[408275696,1773342645786,-1112.74067124,0.00026849,5]
[408275698,1773342645795,-507.0,0.0002708,11]
[408275700,1773342645804,-2954.42978653,0.0002713,2]
[408275702,1773342645813,-200.0,0.00027397,9]
[408275704,1773342645822,-252.89333695,0.00027397,2]
[408275707,1773342645832,-1000.0,0.00027397,20]
[408275709,1773342645842,-21117.09,0.00027397,10]
[408275711,1773342645851,-315.0,0.00027564,120]
[408275713,1773342645863,-989.0,0.00027564,120]
[408275716,1773342645873,-2323.32,0.00027569,2]
[408275718,1773342645885,-820.7005813,0.00028194,2]
[408275720,1773342645894,-500.0,0.00028318,120]
[408275722,1773342645904,-1000.0,0.00028502,2]
[408275724,1773342645913,-151.0,0.00028558,7]
[408275726,1773342645924,-207.317476,0.00028558,7]
[408275728,1773342645933,-207.317476,0.00028558,7]
[408275730,1773342645943,-207.317476,0.00028558,7]
[408275732,1773342645953,-207.317486,0.00028558,7]
[408275734,1773342645964,-69765.7726179,0.00028558,2]
[408275736,1773342645973,-1213.0,0.00028604,2]
[408275738,1773342645982,-922.0,0.00028604,2]
[408275739,1773342645991,-2462.0,0.00028604,2]
[408275741,1773342646000,-421.717,0.00028604,2]
[408275743,1773342646009,-5997.0,0.00028604,2]
[408275746,1773342646019,-1000.0,0.00028776,2]
[408275748,1773342646028,-1885.92,0.000288,14]
[408275750,1773342646038,-995.0,0.000288,2]
[408275752,1773342646047,-562.0,0.000288,2]
[408275754,1773342646056,-183.1230521,0.0002891,2]
[408275756,1773342646065,-1000.0,0.0002905,2]
[408275758,1773342646074,-168.805288,0.00029093,7]
[408275760,1773342646083,-1343.0,0.00029094,2]
[408275762,1773342646092,-657.568,0.00029094,2]
[408275763,1773342646101,-1279.0,0.00029094,2]
[408275765,1773342646110,-1000.0,0.00029324,2]
[408275767,1773342646120,-15566.8480171,0.00029356,2]
[408275769,1773342646129,-1000.0,0.00029598,2]
[408275771,1773342646140,-507.0,0.000296,13]
[408275774,1773342646150,-1000.0,0.00029872,2]
[408275775,1773342646160,-500.0,0.00030082,2]
[408275778,1773342646170,-1296.68133815,0.0003013,2]
[408275779,1773342646179,-198.532113,0.00030137,7]
[408275782,1773342646189,-500.0,0.0003014,7]
[408275783,1773342646198,-1000.0,0.00030146,7]
[408275785,1773342646207,-1000.0,0.0003042,7]
[408275787,1773342646217,-1000.0,0.00030694,7]
[408275789,1773342646226,-1000.0,0.00030968,7]
[408275791,1773342646237,-1000.0,0.00031242,7]
[408275793,1773342646248,-1999.0,0.00031516,7]
[408275795,1773342646257,-426.394,0.00031604,2]
[408275797,1773342646267,-2460.0,0.00031604,2]
[408275799,1773342646276,-414.0,0.00031604,2]
[408275801,1773342646285,-1446.962,0.00031604,2]
[408275803,1773342646295,-1343.0,0.00032094,2]
[408275806,1773342646305,-620.0,0.00032094,2]
[408275808,1773342646314,-507.0,0.0003212,15]
[408275810,1773342646323,-5171.64885565,0.00032405,2]
[408275812,1773342646334,-172.0,0.00032571,2]
[408275814,1773342646343,-347.01,0.00032877,2]
[408275816,1773342646352,-198.54,0.000329,30]
[408275818,1773342646362,-538.48,0.000329,2]
[408275820,1773342646371,-702.15,0.000329,7]
[408275822,1773342646380,-4680.79,0.000331,14]
[408275823,1773342646389,-170.06321562,0.00033295,60]
[408275825,1773342646399,-414.0,0.00034604,2]
[408275827,1773342646409,-507.0,0.0003464,18]
[408275829,1773342646418,-299.999999,0.00035,4]
[408275831,1773342646427,-1343.0,0.00035094,2]
[408275833,1773342646437,-620.0,0.00035094,2]
[408275835,1773342646447,-10000.0,0.00035616,30]
[408275837,1773342646456,-280.82,0.00035786,30]
[408275843,1773342646504,-1571.6,0.000364,30]
[408275846,1773342646514,-538.48,0.000364,2]
[408275848,1773342646524,-702.15,0.000364,7]
[408275850,1773342646535,-1923.51,0.00036447,2]
[408275852,1773342646544,-507.0,0.0003716,20]
[408275854,1773342646554,-414.0,0.00037604,2]
[408275856,1773342646563,-825.25938507,0.0003788,120]
[408275857,1773342646572,-163.50554828,0.0003807,2]
[408275859,1773342646582,-1343.0,0.00038094,2]
[408275861,1773342646591,-620.0,0.00038094,2]
[408275863,1773342646600,-518.07,0.00038355,120]
[408275865,1773342646613,-500.0,0.00038355,120]
[408275867,1773342646622,-500.0,0.00038355,120]
[408275869,1773342646631,-1000.40000012,0.00038356,120]
[408275871,1773342646640,-166.411458,0.00038356,120]
[408275873,1773342646651,-166.411458,0.00038356,120]
[408275875,1773342646660,-166.411458,0.00038356,120]
[408275877,1773342646669,-166.411458,0.00038356,120]
[408275879,1773342646679,-166.411458,0.00038356,120]
[408275881,1773342646688,-166.411458,0.00038356,120]
[408275883,1773342646698,-166.411458,0.00038356,120]
[408275885,1773342646707,-166.411458,0.00038356,120]
[408275887,1773342646716,-166.411458,0.00038356,120]
[408275889,1773342646725,-166.411458,0.00038356,120]
[408275891,1773342646734,-166.411458,0.00038356,120]
[408275893,1773342646743,-166.411458,0.00038356,120]
[408275895,1773342646753,-166.411458,0.00038356,120]
[408275897,1773342646762,-166.411458,0.00038356,120]
[408275899,1773342646771,-166.411458,0.00038356,120]
[408275901,1773342646781,-166.411458,0.00038356,120]
[408275903,1773342646791,-166.411458,0.00038356,120]
[408275905,1773342646800,-166.411458,0.00038356,120]
[408275907,1773342646808,-166.411458,0.00038356,120]
[408275909,1773342646817,-166.411459,0.00038356,120]
[408275911,1773342646827,-151.0,0.00038356,120]
[408275913,1773342646836,-151.0,0.00038356,120]
[408275915,1773342646844,-151.0,0.00038356,120]
[408275918,1773342646856,-151.0,0.00038356,120]
[408275920,1773342646866,-151.0,0.00038356,120]
[408275921,1773342646875,-151.0,0.00038356,120]
[408275923,1773342646889,-151.0,0.00038356,120]
[408275925,1773342646898,-151.0,0.00038356,120]
[408275928,1773342646907,-151.0,0.00038356,120]
[408275929,1773342646916,-151.0,0.00038356,120]
[408275931,1773342646926,-151.0,0.00038356,120]
[408275933,1773342646936,-151.0,0.00038356,120]
[408275935,1773342646945,-151.0,0.00038356,120]
[408275937,1773342646954,-151.0,0.00038356,120]
[408275939,1773342646963,-289.696498,0.00038356,120]
[408275942,1773342646975,-400.16,0.00038356,120]
[408275943,1773342646985,-400.16,0.00038356,120]
[408275945,1773342646995,-400.16,0.00038356,120]
[408275948,1773342647004,-400.16,0.00038356,120]
[408275950,1773342647014,-400.16,0.00038356,120]
[408275952,1773342647023,-400.16,0.00038356,120]
[408275954,1773342647032,-400.16,0.00038356,120]
[408275956,1773342647041,-400.16,0.00038356,120]
[408275958,1773342647053,-400.16,0.00038356,120]
[408275960,1773342647062,-400.16,0.00038356,120]
[408275962,1773342647071,-400.16,0.00038356,120]
[408275964,1773342647081,-400.16,0.00038356,120]
[408275966,1773342647090,-400.16,0.00038356,120]
[408275968,1773342647099,-400.16,0.00038356,120]
[408275970,1773342647109,-167.469065,0.00038356,120]
[408275972,1773342647118,-400.16,0.00038356,120]
[408275974,1773342647127,-400.16,0.00038356,120]
[408275976,1773342647136,-400.16,0.00038356,120]
[408275978,1773342647146,-400.16,0.00038356,120]
[408275980,1773342647155,-400.16,0.00038356,120]
[408275982,1773342647164,-400.16,0.00038356,120]
[408275984,1773342647173,-151.0,0.00038356,120]
[408275986,1773342647182,-264.677578,0.00038356,120]
[408275987,1773342647191,-7759.868907,0.00038356,120]
[408275990,1773342647200,-7759.868907,0.00038356,120]
[408275992,1773342647210,-7759.868907,0.00038356,120]
[408275994,1773342647219,-7759.868907,0.00038356,120]
[408275996,1773342647228,-7759.868907,0.00038356,120]
[408275998,1773342647237,-7759.868907,0.00038356,120]
[408275999,1773342647245,-7759.868907,0.00038356,120]
[408276001,1773342647254,-7759.868907,0.00038356,120]
[408276003,1773342647263,-7759.868907,0.00038356,120]
[408276005,1773342647273,-7759.868907,0.00038356,120]
[408276007,1773342647282,-7759.868907,0.00038356,120]
[408276009,1773342647292,-7759.868907,0.00038356,120]
[408276011,1773342647301,-7759.868907,0.00038356,120]
[408276013,1773342647311,-7759.868907,0.00038356,120]
[408276015,1773342647320,-7759.868907,0.00038356,120]
[408276017,1773342647329,-7759.868907,0.00038356,120]
[408276019,1773342647339,-7759.868907,0.00038356,120]
[408276021,1773342647348,-7759.868907,0.00038356,120]
[408276023,1773342647358,-7759.868907,0.00038356,120]
[408276025,1773342647368,-7759.86889954,0.00038356,120]
[408276027,1773342647377,-4877.442154,0.00038356,120]
[408276029,1773342647387,-4877.442154,0.00038356,120]
[408276031,1773342647396,-4877.442154,0.00038356,120]
[408276033,1773342647405,-4877.442154,0.00038356,120]
[408276035,1773342647414,-4877.442154,0.00038356,120]
[408276037,1773342647424,-4877.442154,0.00038356,120]
[408276039,1773342647433,-4877.442154,0.00038356,120]
[408276041,1773342647442,-4877.442154,0.00038356,120]
[408276043,1773342647452,-4877.442154,0.00038356,120]
[408276045,1773342647462,-4877.442154,0.00038356,120]
[408276047,1773342647471,-4877.442154,0.00038356,120]
[408276049,1773342647480,-4877.442154,0.00038356,120]
[408276051,1773342647490,-4877.442154,0.00038356,120]
[408276053,1773342647499,-4877.442154,0.00038356,120]
[408276055,1773342647509,-4877.442154,0.00038356,120]
[408276057,1773342647519,-4877.442154,0.00038356,120]
[408276059,1773342647529,-4877.442154,0.00038356,120]
[408276061,1773342647538,-4877.442154,0.00038356,120]
[408276063,1773342647547,-1328.5376,0.00038888,30]
[408276065,1773342647556,-151.0,0.00038897,14]
[408276067,1773342647567,-1047.431,0.0003905,53]
[408276069,1773342647576,-507.0,0.0003968,22]
[408276071,1773342647585,-538.48,0.000404,30]
[408276073,1773342647596,-702.15,0.000404,30]
[408276075,1773342647605,-285.39524426,0.00040873,52]
[408276077,1773342647616,-8279.99999996,0.00041,30]
[408276079,1773342647625,-23654.61928547,0.00041,30]
[408276081,1773342647636,-6347.0,0.0004107,2]
[408276083,1773342647644,-1343.0,0.00041094,2]
[408276085,1773342647655,-620.0,0.00041094,2]
[408276086,1773342647664,-7919.83,0.00041095,120]
[408276089,1773342647675,-731.01,0.00041096,120]
[408276090,1773342647685,-375.06315449,0.00041096,2]
[408276092,1773342647695,-210.61,0.0004127,120]
[408276094,1773342647704,-7919.83,0.00041643,120]
[408276096,1773342647713,-843.0,0.00041644,120]
[408276098,1773342647723,-4680.79,0.000419,14]
[408276100,1773342647732,-608.89713279,0.00042,2]
[408276102,1773342647741,-7919.83,0.00042191,120]
[408276104,1773342647751,-787.0,0.00042192,120]
[408276106,1773342647760,-507.0,0.000422,25]
[408276108,1773342647770,-500.0,0.00042699,120]
[408276110,1773342647779,-7919.83,0.00042739,120]
[408276112,1773342647788,-538.48,0.000428,30]
[408276114,1773342647797,-702.15,0.000428,30]
[408276116,1773342647807,-300.00000002,0.00042976,2]
[408276118,1773342647816,-520.22493478,0.00042976,2]
[408276120,1773342647825,-1085.47073912,0.00042976,2]
[408276122,1773342647834,-300.0,0.00042976,2]
[408276124,1773342647843,-346.51232205,0.00042976,2]
[408276126,1773342647852,-1085.47073911,0.00042976,2]
[408276128,1773342647862,-300.0,0.00042976,2]
[408276130,1773342647872,-300.0,0.00042976,2]
[408276132,1773342647885,-306.96741301,0.00042976,2]
[408276134,1773342647894,-857.12196779,0.00042976,2]
[408276136,1773342647903,-308.23791899,0.00042976,2]
[408276138,1773342647912,-459.91927107,0.00042976,2]
[408276140,1773342647921,-300.0,0.00042976,2]
[408276142,1773342647930,-448.04173909,0.00042976,2]
[408276144,1773342647939,-302.33355981,0.00042976,2]
[408276147,1773342647951,-307.19554063,0.00042976,2]
[408276149,1773342647961,-300.0,0.00042976,2]
[408276151,1773342647970,-300.0,0.00042976,2]
[408276153,1773342647979,-1085.47073912,0.00042976,2]
[408276154,1773342647988,-300.0,0.00042976,2]
[408276156,1773342647997,-1085.47073912,0.00042976,2]
[408276158,1773342648007,-200.0,0.00043068,120]
[408276160,1773342648016,-200.0,0.00043068,120]
[408276162,1773342648027,-200.0,0.00043068,120]
[408276164,1773342648036,-200.0,0.00043068,120]
[408276166,1773342648046,-200.0,0.00043068,120]
[408276168,1773342648056,-500.0,0.00043286,120]
[408276170,1773342648065,-7919.83,0.00043287,120]
[408276172,1773342648075,-1444.0,0.00043562,120]
[408276174,1773342648085,-1664.64786826,0.00043616,120]
[408276176,1773342648095,-2834.0,0.00043684,16]
[408276178,1773342648105,-7919.83,0.00043835,120]
[408276180,1773342648115,-150.0,0.00044,57]
[408276182,1773342648125,-1343.0,0.00044094,2]
[408276184,1773342648135,-7919.83,0.00044383,120]
[408276186,1773342648146,-25000.0,0.0004466,15]
[408276188,1773342648156,-25000.0,0.00044669,15]
[408276190,1773342648165,-25000.0,0.00044678,15]
[408276192,1773342648175,-507.0,0.0004472,27]
[408276194,1773342648185,-16801.59937492,0.000449,15]
[408276196,1773342648194,-500.0,0.000449,120]
[408276198,1773342648204,-500.0,0.000449,120]
[408276200,1773342648213,-500.0,0.000449,120]
[408276202,1773342648222,-500.0,0.000449,120]